[Event "Rapid Tournament (RAP)"]
[Site "Biel, Switzerland"]
[Date "2026.07.12"]
[Round "4.36"]
[White "Schwab, Felix"]
[Black "Boyer, Jean-Francois"]
[Result "0-1"]
[TimeControl "15 + 5"]
[WhiteTitle "-"]
[BlackTitle "-"]
[WhiteFideId "1311450"]
[BlackFideId "650226"]
[WhiteElo "1945"]
[BlackElo "1749"]

1. e4 {[%clk 00:14:19]} {[%emt 00:00:51]} e5 {[%clk 00:15:08]} {[%emt
00:00:02]} 2. Nf3 {[%clk 00:14:23]} {[%emt 00:00:01]} Nc6 {[%clk 00:15:12]}
{[%emt 00:00:02]} 3. Bb5 {[%clk 00:14:26]} {[%emt 00:00:02]} Nf6 {[%clk
00:15:05]} {[%emt 00:00:11]} 4. O-O {[%clk 00:14:26]} {[%emt 00:00:05]} Nxe4
{[%clk 00:15:08]} {[%emt 00:00:02]} 5. Re1 {[%clk 00:14:25]} {[%emt 00:00:06]}
Nd6 {[%clk 00:15:05]} {[%emt 00:00:08]} 6. Nxe5 {[%clk 00:14:21]} {[%emt
00:00:09]} Be7 {[%clk 00:14:03]} {[%emt 00:01:06]} 7. Nxc6 {[%clk 00:14:06]}
{[%emt 00:00:21]} dxc6 {[%clk 00:14:03]} {[%emt 00:00:05]} 8. Bf1 {[%clk
00:13:51]} {[%emt 00:00:20]} O-O {[%clk 00:13:39]} {[%emt 00:00:29]} 9. d4
{[%clk 00:13:50]} {[%emt 00:00:06]} Be6 {[%clk 00:13:17]} {[%emt 00:00:28]} 10.
Bf4 {[%clk 00:12:43]} {[%emt 00:01:11]} Bf6 {[%clk 00:12:53]} {[%emt 00:00:29]}
11. c3 {[%clk 00:12:21]} {[%emt 00:00:27]} Re8 {[%clk 00:11:29]} {[%emt
00:01:29]} 12. Nd2 {[%clk 00:12:19]} {[%emt 00:00:07]} g6 {[%clk 00:10:47]}
{[%emt 00:00:47]} 13. Nf3 {[%clk 00:11:51]} {[%emt 00:00:33]} b5 {[%clk
00:08:52]} {[%emt 00:02:00]} 14. Ne5 {[%clk 00:11:31]} {[%emt 00:00:25]} Bd5
{[%clk 00:08:36]} {[%emt 00:00:21]} 15. Ng4 {[%clk 00:10:43]} {[%emt 00:00:53]}
Bg7 {[%clk 00:07:43]} {[%emt 00:00:58]} 16. Be5 {[%clk 00:09:10]} {[%emt
00:01:38]} f6 {[%clk 00:07:08]} {[%emt 00:00:40]} 17. Bg3 {[%clk 00:09:00]}
{[%emt 00:00:14]} Rxe1 {[%clk 00:06:29]} {[%emt 00:00:45]} 18. Qxe1 {[%clk
00:09:01]} {[%emt 00:00:04]} Qd7 {[%clk 00:06:03]} {[%emt 00:00:32]} 19. Ne3
{[%clk 00:08:50]} {[%emt 00:00:15]} Re8 {[%clk 00:06:06]} {[%emt 00:00:02]} 20.
Qd1 {[%clk 00:08:38]} {[%emt 00:00:16]} Bf7 {[%clk 00:05:46]} {[%emt 00:00:25]}
21. Qc2 {[%clk 00:07:57]} {[%emt 00:00:47]} Ne4 {[%clk 00:05:33]} {[%emt
00:00:18]} 22. a4 {[%clk 00:07:14]} {[%emt 00:00:48]} a6 {[%clk 00:05:04]}
{[%emt 00:00:35]} 23. axb5 {[%clk 00:07:03]} {[%emt 00:00:16]} axb5 {[%clk
00:05:06]} {[%emt 00:00:03]} 24. Bd3 {[%clk 00:06:08]} {[%emt 00:00:59]} Nxg3
{[%clk 00:05:08]} {[%emt 00:00:03]} 25. hxg3 {[%clk 00:06:10]} {[%emt
00:00:02]} Bf8 {[%clk 00:03:37]} {[%emt 00:01:37]} 26. Qd1 {[%clk 00:04:43]}
{[%emt 00:01:32]} f5 {[%clk 00:03:19]} {[%emt 00:00:23]} 27. Qf3 {[%clk
00:04:25]} {[%emt 00:00:24]} c5 {[%clk 00:02:46]} {[%emt 00:00:38]} 28. d5
{[%clk 00:03:45]} {[%emt 00:00:44]} c4 {[%clk 00:02:25]} {[%emt 00:00:26]} 29.
Bc2 {[%clk 00:03:37]} {[%emt 00:00:13]} Bc5 {[%clk 00:01:57]} {[%emt 00:00:33]}
30. Rd1 {[%clk 00:02:19]} {[%emt 00:01:24]} Re5 {[%clk 00:01:36]} {[%emt
00:00:25]} 31. d6 {[%clk 00:01:25]} {[%emt 00:00:59]} cxd6 {[%clk 00:01:27]}
{[%emt 00:00:14]} 32. Nd5 {[%clk 00:01:23]} {[%emt 00:00:07]} Kg7 {[%clk
00:01:04]} {[%emt 00:00:28]} 33. Nf4 {[%clk 00:00:34]} {[%emt 00:00:55]} Qe8
{[%clk 00:00:21]} {[%emt 00:00:47]} 34. Kh2 {[%clk 00:00:00]} {[%emt 00:00:35]}
0-1

[Event "Rapid Tournament (RAP)"]
[Site "Biel, Switzerland"]
[Date "2026.07.12"]
[Round "4.38"]
[White "Wilhelm, Serge"]
[Black "Huang, Hsuan-Chen"]
[Result "1/2-1/2"]
[TimeControl "15 + 5"]
[WhiteTitle "-"]
[BlackTitle "-"]
[WhiteFideId "1305808"]
[BlackFideId "16303121"]
[WhiteElo "1923"]
[BlackElo "1648"]

1. Nf3 {[%clk 00:15:08]} Nf6 {[%clk 00:15:08]} {[%emt 00:00:03]} 2. g3 {[%clk
00:15:12]} {[%emt 00:00:01]} d5 {[%clk 00:15:10]} {[%emt 00:00:03]} 3. Bg2
{[%clk 00:15:15]} Nbd7 {[%clk 00:15:11]} {[%emt 00:00:06]} 4. d3 {[%clk
00:15:19]} e5 {[%clk 00:15:14]} {[%emt 00:00:02]} 5. Nbd2 {[%clk 00:15:17]}
{[%emt 00:00:06]} Bd6 {[%clk 00:15:13]} {[%emt 00:00:06]} 6. e4 {[%clk
00:15:17]} {[%emt 00:00:05]} c6 {[%clk 00:15:16]} {[%emt 00:00:03]} 7. O-O
{[%clk 00:15:17]} {[%emt 00:00:04]} O-O {[%clk 00:15:18]} {[%emt 00:00:02]} 8.
Re1 {[%clk 00:15:10]} {[%emt 00:00:13]} Re8 {[%clk 00:15:18]} {[%emt 00:00:06]}
9. Nf1 {[%clk 00:14:58]} {[%emt 00:00:16]} Bc5 {[%clk 00:13:42]} {[%emt
00:01:42]} 10. h3 {[%clk 00:13:29]} {[%emt 00:01:33]} Qb6 {[%clk 00:11:39]}
{[%emt 00:02:08]} 11. Re2 {[%clk 00:12:50]} {[%emt 00:00:44]} h6 {[%clk
00:10:41]} {[%emt 00:01:03]} 12. c3 {[%clk 00:11:41]} {[%emt 00:01:14]} dxe4
{[%clk 00:10:17]} {[%emt 00:00:29]} 13. dxe4 {[%clk 00:11:44]} {[%emt
00:00:02]} a5 {[%clk 00:10:20]} {[%emt 00:00:02]} 14. Qc2 {[%clk 00:11:18]}
{[%emt 00:00:31]} Nf8 {[%clk 00:08:03]} {[%emt 00:02:22]} 15. Ne3 {[%clk
00:11:11]} {[%emt 00:00:12]} Bd7 {[%clk 00:06:48]} {[%emt 00:01:20]} 16. Nc4
{[%clk 00:10:53]} {[%emt 00:00:23]} Qc7 {[%clk 00:06:48]} {[%emt 00:00:05]} 17.
Be3 {[%clk 00:10:15]} {[%emt 00:00:43]} Bxe3 {[%clk 00:06:12]} {[%emt
00:00:41]} 18. Nxe3 {[%clk 00:10:18]} {[%emt 00:00:02]} Rad8 {[%clk 00:05:53]}
{[%emt 00:00:24]} 19. Rd2 {[%clk 00:10:08]} {[%emt 00:00:16]} Ng6 {[%clk
00:05:22]} {[%emt 00:00:35]} 20. Rad1 {[%emt 00:00:53]} Be6 {[%clk 00:04:57]}
21. b3 {[%clk 00:09:50]} {[%emt 00:00:05]} Rxd2 {[%clk 00:04:36]} {[%emt
00:00:26]} 22. Rxd2 {[%clk 00:09:51]} {[%emt 00:00:04]} Qb6 {[%clk 00:04:17]}
{[%emt 00:00:25]} 23. Bf1 {[%clk 00:09:37]} {[%emt 00:00:18]} h5 {[%clk
00:03:40]} {[%emt 00:00:42]} 24. h4 {[%clk 00:09:23]} {[%emt 00:00:19]} Ng4
{[%clk 00:03:02]} {[%emt 00:00:43]} 25. Nxg4 {[%clk 00:09:05]} {[%emt
00:00:23]} Bxg4 {[%clk 00:03:05]} {[%emt 00:00:02]} 26. Qd3 {[%clk 00:07:29]}
{[%emt 00:01:41]} Nf8 {[%clk 00:02:41]} {[%emt 00:00:30]} 27. Be2 {[%clk
00:07:04]} {[%emt 00:00:29]} Bxf3 {[%clk 00:02:18]} {[%emt 00:00:28]} 28. Bxf3
{[%clk 00:07:04]} {[%emt 00:00:05]} g6 {[%clk 00:02:23]} {[%emt 00:00:01]} 29.
Qd6 {[%clk 00:06:17]} {[%emt 00:00:52]} Re6 {[%clk 00:01:45]} {[%emt 00:00:42]}
30. Qd8 {[%clk 00:06:06]} {[%emt 00:00:17]} Qxd8 {[%clk 00:01:49]} {[%emt
00:00:01]} 31. Rxd8 {[%clk 00:06:09]} {[%emt 00:00:01]} b6 {[%clk 00:01:34]}
{[%emt 00:00:21]} 32. Be2 {[%clk 00:06:01]} {[%emt 00:00:12]} Kg7 {[%clk
00:01:22]} {[%emt 00:00:18]} 33. Bc4 {[%clk 00:05:45]} {[%emt 00:00:21]} Rf6
{[%clk 00:01:26]} {[%emt 00:00:01]} 34. Kf1 {[%clk 00:05:24]} {[%emt 00:00:25]}
Ne6 {[%clk 00:01:22]} {[%emt 00:00:10]} 35. Bxe6 {[%clk 00:05:26]} {[%emt
00:00:03]} Rxe6 {[%clk 00:01:26]} {[%emt 00:00:01]} 36. Ke2 {[%clk 00:05:06]}
{[%emt 00:00:25]} Kf6 {[%clk 00:01:30]} 37. a4 {[%clk 00:04:03]} {[%emt
00:01:08]} Ke7 {[%clk 00:01:13]} {[%emt 00:00:22]} 38. Rd3 {[%clk 00:03:49]}
{[%emt 00:00:19]} 1/2-1/2

[Event "Rapid Tournament (RAP)"]
[Site "Biel, Switzerland"]
[Date "2026.07.12"]
[Round "4.40"]
[White "Fernandes Barbosa Dos Santos, Gabriel"]
[Black "Gunzinger, Severin"]
[Result "1/2-1/2"]
[TimeControl "15 + 5"]
[WhiteTitle "-"]
[BlackTitle "-"]
[WhiteFideId "1354388"]
[BlackFideId "1362518"]
[WhiteElo "2199"]
[BlackElo "1607"]

1. e4 {[%clk 00:15:00]} {[%emt 00:00:09]} c5 {[%clk 00:15:08]} {[%emt
00:00:02]} 2. Nf3 {[%clk 00:15:03]} {[%emt 00:00:02]} e6 {[%emt 00:00:04]} 3.
d4 {[%clk 00:15:07]} cxd4 {[%clk 00:15:14]} {[%emt 00:00:02]} 4. Nxd4 {[%clk
00:15:09]} {[%emt 00:00:02]} a6 {[%clk 00:15:17]} {[%emt 00:00:03]} 5. c4
{[%clk 00:15:12]} {[%emt 00:00:02]} Nf6 {[%clk 00:15:19]} {[%emt 00:00:03]} 6.
Nc3 {[%clk 00:15:14]} {[%emt 00:00:02]} Qc7 {[%clk 00:15:21]} {[%emt 00:00:04]}
7. a3 {[%clk 00:15:17]} {[%emt 00:00:02]} b6 {[%clk 00:15:19]} {[%emt
00:00:06]} 8. Be3 {[%clk 00:15:14]} {[%emt 00:00:08]} Bb7 {[%clk 00:15:20]}
{[%emt 00:00:05]} 9. f3 {[%clk 00:15:14]} {[%emt 00:00:05]} d6 {[%clk
00:15:20]} {[%emt 00:00:04]} 10. Be2 {[%clk 00:15:15]} {[%emt 00:00:04]} Be7
{[%clk 00:15:21]} {[%emt 00:00:05]} 11. Rc1 {[%clk 00:15:14]} {[%emt 00:00:05]}
O-O {[%clk 00:15:15]} {[%emt 00:00:11]} 12. O-O {[%clk 00:15:14]} {[%emt
00:00:05]} Nbd7 {[%clk 00:15:12]} {[%emt 00:00:09]} 13. b4 {[%clk 00:14:47]}
{[%emt 00:00:32]} Rfe8 {[%clk 00:15:03]} {[%emt 00:00:13]} 14. Qd2 {[%clk
00:14:29]} {[%emt 00:00:24]} Rac8 {[%clk 00:14:56]} {[%emt 00:00:12]} 15. Kh1
{[%clk 00:14:13]} {[%emt 00:00:21]} Qb8 {[%clk 00:14:45]} {[%emt 00:00:15]} 16.
Rfd1 {[%clk 00:13:24]} {[%emt 00:00:55]} Bd8 {[%clk 00:14:23]} {[%emt
00:00:26]} 17. Nb3 {[%clk 00:11:14]} {[%emt 00:02:15]} Bc7 {[%clk 00:13:23]}
{[%emt 00:01:05]} 18. Bf4 {[%clk 00:10:38]} {[%emt 00:00:41]} Ne5 {[%clk
00:13:14]} {[%emt 00:00:14]} 19. Na4 {[%clk 00:09:23]} {[%emt 00:01:21]} Bc6
{[%clk 00:12:13]} {[%emt 00:01:05]} 20. b5 {[%clk 00:09:13]} {[%emt 00:00:16]}
axb5 {[%clk 00:11:46]} {[%emt 00:00:32]} 21. cxb5 {[%clk 00:09:16]} {[%emt
00:00:02]} Ba8 {[%clk 00:11:21]} {[%emt 00:00:29]} 22. Nd4 {[%clk 00:09:13]}
{[%emt 00:00:09]} d5 {[%clk 00:09:15]} {[%emt 00:02:10]} 23. exd5 {[%clk
00:06:40]} {[%emt 00:02:38]} Nxd5 {[%clk 00:08:35]} {[%emt 00:00:46]} 24. Bg3
{[%clk 00:06:42]} {[%emt 00:00:03]} Ng6 {[%clk 00:07:34]} {[%emt 00:01:06]} 25.
Bxc7 {[%clk 00:06:21]} {[%emt 00:00:26]} Rxc7 {[%clk 00:07:32]} {[%emt
00:00:07]} 26. Nc6 {[%clk 00:06:20]} {[%emt 00:00:05]} Bxc6 {[%clk 00:07:01]}
{[%emt 00:00:37]} 27. bxc6 {[%clk 00:06:23]} {[%emt 00:00:02]} Qa8 {[%clk
00:06:39]} {[%emt 00:00:27]} 28. Bb5 {[%clk 00:06:06]} {[%emt 00:00:22]} Nge7
{[%clk 00:06:06]} {[%emt 00:00:38]} 29. Qf2 {[%clk 00:05:34]} {[%emt 00:00:37]}
Qa5 {[%clk 00:05:47]} {[%emt 00:00:23]} 30. Qe2 {[%clk 00:04:54]} {[%emt
00:00:46]} Rec8 {[%clk 00:05:16]} {[%emt 00:00:36]} 31. h3 {[%clk 00:04:58]}
{[%emt 00:00:01]} Nxc6 {[%clk 00:04:47]} {[%emt 00:00:35]} 32. Rxd5 {[%clk
00:04:51]} {[%emt 00:00:11]} exd5 {[%clk 00:04:35]} {[%emt 00:00:17]} 33. Rxc6
{[%clk 00:04:52]} {[%emt 00:00:04]} Rxc6 {[%clk 00:03:57]} {[%emt 00:00:43]} 34.
Bxc6 {[%clk 00:04:55]} {[%emt 00:00:02]} h6 {[%clk 00:03:20]} {[%emt 00:00:41]}
35. Bd7 {[%clk 00:03:35]} {[%emt 00:01:26]} Rd8 {[%clk 00:02:34]} {[%emt
00:00:52]} 36. Qe7 {[%clk 00:01:42]} {[%emt 00:01:57]} Rxd7 {[%clk 00:02:09]}
{[%emt 00:00:30]} 37. Qe8+ {[%clk 00:01:46]} {[%emt 00:00:01]} Kh7 {[%clk
00:02:08]} {[%emt 00:00:06]} 38. Qxd7 {[%clk 00:01:49]} {[%emt 00:00:02]} Qe1+
{[%clk 00:02:05]} {[%emt 00:00:08]} 39. Kh2 {[%clk 00:01:53]} {[%emt 00:00:01]}
Qe5+ {[%clk 00:02:07]} {[%emt 00:00:03]} 40. f4 {[%clk 00:01:55]} {[%emt
00:00:03]} Qxf4+ {[%clk 00:01:55]} {[%emt 00:00:16]} 41. Kg1 {[%clk 00:01:59]}
{[%emt 00:00:02]} Qe3+ {[%clk 00:01:26]} {[%emt 00:00:33]} 42. Kf1 {[%clk
00:01:58]} {[%emt 00:00:06]} Qf4+ {[%clk 00:01:19]} {[%emt 00:00:13]} 43. Ke2
{[%clk 00:01:55]} {[%emt 00:00:03]} Qe4+ {[%clk 00:01:13]} {[%emt 00:00:15]} 44.
Kd2 {[%clk 00:00:49]} {[%emt 00:01:12]} Qxg2+ {[%clk 00:01:06]} {[%emt
00:00:12]} 45. Kc3 {[%clk 00:00:51]} {[%emt 00:00:03]} Qf3+ {[%clk 00:00:33]}
{[%emt 00:00:37]} 46. Kb4 {[%clk 00:00:47]} {[%emt 00:00:07]} Qe4+ {[%clk
00:00:26]} {[%emt 00:00:14]} 47. Kb5 {[%clk 00:00:41]} {[%emt 00:00:11]} Qc4+
{[%clk 00:00:23]} {[%emt 00:00:09]} 48. Kxb6 {[%clk 00:00:44]} {[%emt
00:00:02]} Qb3+ {[%clk 00:00:23]} {[%emt 00:00:04]} 49. Qb5 {[%clk 00:00:26]}
{[%emt 00:00:23]} Qxa3 {[%clk 00:00:23]} {[%emt 00:00:05]} 50. Qxd5 {[%clk
00:00:24]} {[%emt 00:00:08]} Qxa4 {[%clk 00:00:21]} {[%emt 00:00:07]} 51. Qf5+
{[%clk 00:00:27]} {[%emt 00:00:02]} Kg8 {[%clk 00:00:24]} {[%emt 00:00:02]} 52.
Qc8+ {[%clk 00:00:31]} {[%emt 00:00:02]} 1/2-1/2

[Event "Rapid Tournament (RAP)"]
[Site "Biel, Switzerland"]
[Date "2026.07.12"]
[Round "4.41"]
[White "Chu, Wa Ching David"]
[Black "De Gregorio, Alexis"]
[Result "1/2-1/2"]
[TimeControl "15 + 5"]
[WhiteTitle "-"]
[BlackTitle "-"]
[WhiteFideId "6013180"]
[BlackFideId "1310054"]
[WhiteElo "1723"]
[BlackElo "2030"]

1. d4 {[%clk 00:15:05]} {[%emt 00:00:01]} Nf6 {[%clk 00:15:08]} {[%emt
00:00:03]} 2. Bg5 {[%clk 00:15:08]} {[%emt 00:00:03]} d5 {[%clk 00:15:06]}
{[%emt 00:00:06]} 3. Nd2 {[%clk 00:15:08]} {[%emt 00:00:04]} Nbd7 {[%clk
00:14:57]} {[%emt 00:00:14]} 4. e3 {[%clk 00:15:10]} {[%emt 00:00:04]} g6
{[%clk 00:14:52]} {[%emt 00:00:10]} 5. Ngf3 {[%clk 00:15:13]} {[%emt 00:00:02]}
Bg7 {[%clk 00:14:54]} {[%emt 00:00:03]} 6. c4 {[%clk 00:15:13]} {[%emt
00:00:03]} c6 {[%clk 00:14:52]} {[%emt 00:00:09]} 7. Bd3 {[%clk 00:15:15]}
{[%emt 00:00:03]} O-O {[%clk 00:14:30]} {[%emt 00:00:27]} 8. O-O {[%clk
00:15:17]} {[%emt 00:00:03]} dxc4 {[%clk 00:14:09]} {[%emt 00:00:26]} 9. Nxc4
{[%clk 00:14:52]} {[%emt 00:00:30]} b5 {[%clk 00:13:37]} {[%emt 00:00:37]} 10.
Nce5 {[%clk 00:14:43]} {[%emt 00:00:14]} Nxe5 {[%clk 00:13:30]} {[%emt
00:00:13]} 11. Nxe5 {[%clk 00:14:40]} {[%emt 00:00:07]} Bb7 {[%clk 00:13:27]}
{[%emt 00:00:07]} 12. Rc1 {[%clk 00:14:41]} {[%emt 00:00:04]} Rc8 {[%clk
00:13:14]} {[%emt 00:00:19]} 13. Qe2 {[%clk 00:14:04]} {[%emt 00:00:41]} Nd7
{[%clk 00:12:57]} {[%emt 00:00:22]} 14. Nxd7 {[%clk 00:13:22]} {[%emt
00:00:45]} Qxd7 {[%clk 00:12:57]} {[%emt 00:00:08]} 15. Rfd1 {[%clk 00:13:07]}
{[%emt 00:00:19]} a6 {[%clk 00:12:48]} {[%emt 00:00:15]} 16. Rc5 {[%clk
00:12:14]} {[%emt 00:00:58]} Rfe8 {[%clk 00:10:58]} {[%emt 00:01:55]} 17. h4
{[%clk 00:11:07]} {[%emt 00:01:11]} e5 {[%clk 00:09:52]} {[%emt 00:01:12]} 18.
dxe5 {[%clk 00:10:41]} {[%emt 00:00:31]} Qe6 {[%clk 00:08:56]} {[%emt
00:01:01]} 19. Bf4 {[%clk 00:09:04]} {[%emt 00:01:42]} Qe7 {[%clk 00:08:36]}
{[%emt 00:00:24]} 20. Rdc1 {[%clk 00:07:21]} {[%emt 00:01:48]} Qxh4 {[%clk
00:08:13]} {[%emt 00:00:29]} 21. Be4 {[%clk 00:06:49]} {[%emt 00:00:36]} Qe7
{[%clk 00:06:07]} {[%emt 00:02:12]} 22. Bxc6 {[%clk 00:05:36]} {[%emt
00:01:18]} Bxc6 {[%clk 00:04:54]} {[%emt 00:01:18]} 23. Rxc6 {[%clk 00:05:40]}
{[%emt 00:00:01]} Rxc6 {[%clk 00:04:58]} {[%emt 00:00:02]} 24. Rxc6 {[%clk
00:05:43]} Bxe5 {[%clk 00:04:47]} {[%emt 00:00:15]} 25. Bxe5 {[%clk 00:05:32]}
{[%emt 00:00:15]} Qxe5 {[%clk 00:04:50]} {[%emt 00:00:04]} 26. Qd2 {[%clk
00:05:03]} {[%emt 00:00:34]} Re6 {[%clk 00:04:07]} {[%emt 00:00:48]} 27. Qd8+
{[%clk 00:04:00]} {[%emt 00:01:08]} Kg7 {[%clk 00:03:55]} {[%emt 00:00:17]} 28.
Rxe6 {[%clk 00:03:54]} {[%emt 00:00:10]} Qxe6 {[%clk 00:03:54]} {[%emt
00:00:06]} 29. Qd4+ {[%clk 00:03:53]} {[%emt 00:00:06]} Kg8 {[%clk 00:03:52]}
{[%emt 00:00:07]} 30. b3 {[%clk 00:03:48]} {[%emt 00:00:10]} Qc6 {[%clk
00:03:51]} {[%emt 00:00:06]} 31. Qd8+ {[%clk 00:03:50]} {[%emt 00:00:03]} Kg7
{[%clk 00:03:53]} {[%emt 00:00:04]} 32. Qd4+ {[%clk 00:03:53]} {[%emt
00:00:02]} Kg8 {[%clk 00:03:56]} {[%emt 00:00:02]} 33. Qd8+ {[%clk 00:03:53]}
{[%emt 00:00:05]} Kg7 {[%clk 00:04:00]} {[%emt 00:00:02]} 34. Qd4+ {[%clk
00:03:56]} {[%emt 00:00:01]} 1/2-1/2

[Event "Rapid Tournament (RAP)"]
[Site "Biel, Switzerland"]
[Date "2026.07.12"]
[Round "4.42"]
[White "Creux, Francois"]
[Black "Lang, Fabian"]
[Result "0-1"]
[TimeControl "15 + 5"]
[WhiteTitle "-"]
[BlackTitle "-"]
[WhiteFideId "1357743"]
[BlackFideId "1310160"]
[WhiteElo "1668"]
[BlackElo "1900"]

1. e4 {[%clk 00:15:07]} {[%emt 00:00:03]} c6 {[%clk 00:15:09]} {[%emt
00:00:03]} 2. Nf3 {[%clk 00:15:09]} {[%emt 00:00:01]} d5 {[%clk 00:15:12]}
{[%emt 00:00:02]} 3. Nc3 {[%clk 00:15:12]} {[%emt 00:00:01]} dxe4 {[%clk
00:15:14]} {[%emt 00:00:04]} 4. Nxe4 {[%clk 00:15:14]} {[%emt 00:00:03]} Nf6
{[%clk 00:15:17]} {[%emt 00:00:02]} 5. Ng3 {[%clk 00:15:17]} {[%emt 00:00:02]}
h5 {[%clk 00:15:09]} {[%emt 00:00:14]} 6. Bc4 {[%clk 00:14:37]} {[%emt
00:00:44]} h4 {[%clk 00:14:44]} {[%emt 00:00:29]} 7. Ne2 {[%clk 00:14:40]}
{[%emt 00:00:02]} Bf5 {[%clk 00:13:17]} {[%emt 00:01:31]} 8. d3 {[%clk
00:14:13]} {[%emt 00:00:34]} e6 {[%clk 00:13:14]} {[%emt 00:00:07]} 9. Bg5
{[%clk 00:13:53]} {[%emt 00:00:25]} h3 {[%clk 00:12:56]} {[%emt 00:00:24]} 10.
g3 {[%clk 00:13:30]} {[%emt 00:00:28]} Nbd7 {[%clk 00:11:34]} {[%emt 00:01:28]}
11. Nfd4 {[%clk 00:12:39]} {[%emt 00:00:55]} Bg4 {[%clk 00:10:32]} {[%emt
00:01:07]} 12. f3 {[%clk 00:12:30]} {[%emt 00:00:14]} Bh5 {[%clk 00:07:21]}
{[%emt 00:03:16]} 13. g4 {[%clk 00:12:16]} {[%emt 00:00:19]} Bg6 {[%clk
00:07:20]} {[%emt 00:00:06]} 14. f4 {[%clk 00:12:02]} {[%emt 00:00:19]} Be7
{[%clk 00:06:49]} {[%emt 00:00:36]} 15. Rg1 {[%clk 00:10:52]} {[%emt 00:01:16]}
Qb6 {[%clk 00:06:07]} {[%emt 00:00:47]} 16. c3 {[%clk 00:07:33]} {[%emt
00:03:23]} Rd8 {[%clk 00:05:26]} {[%emt 00:00:45]} 17. Rg3 {[%clk 00:06:27]}
{[%emt 00:01:12]} c5 {[%clk 00:03:42]} {[%emt 00:01:49]} 18. f5 {[%clk
00:05:11]} {[%emt 00:01:21]} exf5 {[%clk 00:02:48]} {[%emt 00:00:59]} 19. Nxf5
{[%clk 00:04:54]} {[%emt 00:00:22]} Bxf5 {[%clk 00:02:23]} {[%emt 00:00:31]} 20.
gxf5 {[%clk 00:04:55]} {[%emt 00:00:03]} Ne5 {[%clk 00:02:08]} {[%emt
00:00:20]} 21. Bb3 {[%clk 00:04:22]} {[%emt 00:00:38]} c4 {[%clk 00:02:00]}
{[%emt 00:00:13]} 22. Ba4+ {[%clk 00:04:22]} {[%emt 00:00:05]} Kf8 {[%clk
00:02:05]} {[%emt 00:00:01]} 23. Bc2 {[%clk 00:03:34]} {[%emt 00:00:52]} Qc6
{[%clk 00:01:42]} {[%emt 00:00:28]} 24. Nd4 {[%clk 00:03:23]} {[%emt 00:00:16]}
Qh1+ {[%clk 00:01:38]} {[%emt 00:00:09]} 25. Kd2 {[%clk 00:02:51]} {[%emt
00:00:37]} Qxh2+ {[%clk 00:01:40]} {[%emt 00:00:03]} 26. Ne2 {[%clk 00:02:55]}
cxd3 {[%clk 00:01:32]} {[%emt 00:00:14]} 27. Bxd3 {[%clk 00:02:30]} {[%emt
00:00:29]} Ne4+ {[%clk 00:01:21]} {[%emt 00:00:16]} 0-1